[Event "Early-Titled-Tuesday-Blitz-February-27-2024"]
[Site "Chess.com"]
[Date "2024.02.27"]
[Round "4"]
[White "emeli_chess"]
[Black "ScofieldMichael01"]
[Result "1/2-1/2"]
[WhiteElo "2439"]
[BlackElo "2605"]
[TimeControl "180+1"]
[EndTime "8:38:20 PST"]
[Termination "Game drawn by repetition"]

1. d4 {[%clk 0:03:00.9]} 1... Nf6 {[%clk 0:02:57.8]} 2. c4 {[%clk 0:03:01.1]}
2... c5 {[%clk 0:02:55]} 3. d5 {[%clk 0:03:00.8]} 3... b5 {[%clk 0:02:55]} 4.
cxb5 {[%clk 0:03:01.3]} 4... a6 {[%clk 0:02:50.9]} 5. b6 {[%clk 0:03:01.8]} 5...
e6 {[%clk 0:02:49.6]} 6. Nc3 {[%clk 0:03:02.7]} 6... exd5 {[%clk 0:02:49.2]} 7.
Nxd5 {[%clk 0:03:03]} 7... Nxd5 {[%clk 0:02:50.1]} 8. Qxd5 {[%clk 0:03:03.1]}
8... Nc6 {[%clk 0:02:50.9]} 9. Nf3 {[%clk 0:03:02.4]} 9... Be7 {[%clk
0:02:51.4]} 10. e4 {[%clk 0:03:02.1]} 10... O-O {[%clk 0:02:51.9]} 11. Bc4
{[%clk 0:03:00.5]} 11... Rb8 {[%clk 0:02:52.2]} 12. O-O {[%clk 0:02:59.8]} 12...
Rxb6 {[%clk 0:02:52.9]} 13. Ng5 {[%clk 0:02:55.2]} 13... Bxg5 {[%clk 0:02:15.2]}
14. Bxg5 {[%clk 0:02:52.1]} 14... Qc7 {[%clk 0:02:07.8]} 15. Qxc5 {[%clk
0:02:32]} 15... Rxb2 {[%clk 0:01:58.4]} 16. Rab1 {[%clk 0:02:26.5]} 16... Rxb1
{[%clk 0:01:57]} 17. Rxb1 {[%clk 0:02:26]} 17... d6 {[%clk 0:01:35]} 18. Qb6
{[%clk 0:02:22]} 18... Qd7 {[%clk 0:01:25.7]} 19. f3 {[%clk 0:02:15.8]} 19...
Ne5 {[%clk 0:01:12.1]} 20. Bxa6 {[%clk 0:02:07.4]} 20... h6 {[%clk 0:01:01]} 21.
Bf4 {[%clk 0:01:57.3]} 21... Qa4 {[%clk 0:00:52.9]} 22. Bxc8 {[%clk 0:01:41]}
22... Rxc8 {[%clk 0:00:50.8]} 23. Bxe5 {[%clk 0:01:27.4]} 23... dxe5 {[%clk
0:00:51.7]} 24. Qb3 {[%clk 0:01:23.2]} 24... Qd4+ {[%clk 0:00:50.7]} 25. Kh1
{[%clk 0:01:21.2]} 25... Rc3 {[%clk 0:00:50]} 26. Qd5 {[%clk 0:00:57.3]} 26...
Qxd5 {[%clk 0:00:35]} 27. exd5 {[%clk 0:00:56.9]} 27... Rd3 {[%clk 0:00:35.6]}
28. Kg1 {[%clk 0:00:53.3]} 28... Rxd5 {[%clk 0:00:35.8]} 29. a4 {[%clk
0:00:53.4]} 29... f5 {[%clk 0:00:31.9]} 30. Rb5 {[%clk 0:00:51.3]} 30... Rd1+
{[%clk 0:00:25.4]} 31. Kf2 {[%clk 0:00:50.8]} 31... Rd2+ {[%clk 0:00:25.7]} 32.
Kf1 {[%clk 0:00:47.8]} 32... Rd1+ {[%clk 0:00:25.2]} 33. Ke2 {[%clk 0:00:46.8]}
33... Ra1 {[%clk 0:00:25.1]} 34. a5 {[%clk 0:00:44.3]} 34... Ra2+ {[%clk
0:00:22.3]} 35. Ke3 {[%clk 0:00:37.1]} 35... Rxg2 {[%clk 0:00:20]} 36. Rxe5
{[%clk 0:00:35.2]} 36... Rxh2 {[%clk 0:00:20.3]} 37. Rxf5 {[%clk 0:00:33.2]}
37... Ra2 {[%clk 0:00:21]} 38. Rb5 {[%clk 0:00:30.7]} 38... Kf7 {[%clk
0:00:21.1]} 39. Kf4 {[%clk 0:00:30]} 39... Kg6 {[%clk 0:00:20.5]} 40. Kg4 {[%clk
0:00:28.3]} 40... Ra4+ {[%clk 0:00:19.5]} 41. f4 {[%clk 0:00:28.1]} 41... Ra2
{[%clk 0:00:18.9]} 42. Rb6+ {[%clk 0:00:28.1]} 42... Kf7 {[%clk 0:00:19]} 43. a6
{[%clk 0:00:28.5]} 43... g6 {[%clk 0:00:19]} 44. Rb7+ {[%clk 0:00:24.4]} 44...
Kf6 {[%clk 0:00:19.2]} 45. Rb6+ {[%clk 0:00:24.5]} 45... Kf7 {[%clk 0:00:19]}
46. Rb7+ {[%clk 0:00:22.9]} 46... Kf6 {[%clk 0:00:18.8]} 47. Rb6+ {[%clk
0:00:22.7]} 47... Kg7 {[%clk 0:00:18.5]} 48. Rb7+ {[%clk 0:00:20.9]} 48... Kf6
{[%clk 0:00:17.5]} 1/2-1/2

[Event "Early-Titled-Tuesday-Blitz-February-27-2024"]
[Site "Chess.com"]
[Date "2024.02.27"]
[Round "4"]
[White "LimeInTheCoconut"]
[Black "Pikku_Myy73"]
[Result "1-0"]
[WhiteElo "2501"]
[BlackElo "2260"]
[TimeControl "180+1"]
[EndTime "8:38:21 PST"]
[Termination "LimeInTheCoconut won on time"]

1. b3 {[%clk 0:03:00.9]} 1... e5 {[%clk 0:02:53.2]} 2. Bb2 {[%clk 0:03:00.4]}
2... Nc6 {[%clk 0:02:53.9]} 3. e3 {[%clk 0:03:00.2]} 3... Nf6 {[%clk 0:02:53.7]}
4. Bb5 {[%clk 0:02:59.2]} 4... Bd6 {[%clk 0:02:51.3]} 5. Na3 {[%clk 0:02:58.8]}
5... O-O {[%clk 0:02:47.2]} 6. Nc4 {[%clk 0:02:55.4]} 6... Qe7 {[%clk
0:02:41.1]} 7. Nxd6 {[%clk 0:02:48.1]} 7... Qxd6 {[%clk 0:02:40.9]} 8. Nf3
{[%clk 0:02:43.5]} 8... e4 {[%clk 0:02:35.8]} 9. Nd4 {[%clk 0:02:42.1]} 9...
Nxd4 {[%clk 0:02:32]} 10. Bxd4 {[%clk 0:02:43]} 10... Qd5 {[%clk 0:02:11.1]} 11.
Bc4 {[%clk 0:02:41.6]} 11... Qg5 {[%clk 0:02:11]} 12. Bf1 {[%clk 0:02:17.7]}
12... d5 {[%clk 0:02:05.3]} 13. Qe2 {[%clk 0:02:15.3]} 13... b6 {[%clk
0:01:52.8]} 14. f4 {[%clk 0:02:04.7]} 14... Qg6 {[%clk 0:01:45.5]} 15. Qf2
{[%clk 0:01:42.5]} 15... c5 {[%clk 0:01:37.2]} 16. Bb2 {[%clk 0:01:41.1]} 16...
Re8 {[%clk 0:00:47.3]} 17. h3 {[%clk 0:01:37.5]} 17... d4 {[%clk 0:00:44.8]} 18.
g4 {[%clk 0:01:33]} 18... Nd5 {[%clk 0:00:39.4]} 19. O-O-O {[%clk 0:01:14.7]}
19... Nb4 {[%clk 0:00:32.9]} 20. f5 {[%clk 0:01:05.3]} 20... Qc6 {[%clk
0:00:29.4]} 21. a3 {[%clk 0:00:58.5]} 21... Nd5 {[%clk 0:00:23.9]} 22. exd4
{[%clk 0:00:55.8]} 22... e3 {[%clk 0:00:20]} 23. dxe3 {[%clk 0:00:06.1]} 23...
Nxe3 {[%clk 0:00:19.6]} 24. Bd3 {[%clk 0:00:03.3]} 24... Nxd1 {[%clk 0:00:18.1]}
25. Rxd1 {[%clk 0:00:04.2]} 25... Qh6+ {[%clk 0:00:12.6]} 26. Kb1 {[%clk
0:00:04]} 26... Qe3 {[%clk 0:00:13.2]} 27. Qxe3 {[%clk 0:00:02.7]} 27... Rxe3
{[%clk 0:00:13.1]} 28. dxc5 {[%clk 0:00:03.6]} 28... Bb7 {[%clk 0:00:07.5]} 29.
cxb6 {[%clk 0:00:02.4]} 29... axb6 {[%clk 0:00:07.7]} 30. Bc4 {[%clk 0:00:02.9]}
30... Bc6 {[%clk 0:00:05.3]} 31. Rd6 {[%clk 0:00:03]} 31... Rc8 {[%clk
0:00:04.7]} 32. Ba6 {[%clk 0:00:02.8]} 32... Re1+ {[%clk 0:00:04]} 33. Ka2
{[%clk 0:00:02.8]} 33... Rc7 {[%clk 0:00:01.6]} 34. Rd8+ {[%clk 0:00:02.9]}
34... Be8 {[%clk 0:00:01.9]} 35. Bb5 {[%clk 0:00:02.9]} 35... Rce7 {[%clk
0:00:02.2]} 36. a4 {[%clk 0:00:02.9]} 1-0

[Event "Early-Titled-Tuesday-Blitz-February-27-2024"]
[Site "Chess.com"]
[Date "2024.02.27"]
[Round "4"]
[White "manitodeplomo"]
[Black "urano56"]
[Result "1/2-1/2"]
[WhiteElo "2649"]
[BlackElo "2337"]
[TimeControl "180+1"]
[EndTime "8:38:22 PST"]
[Termination "Game drawn by repetition"]

1. d4 {[%clk 0:02:54.4]} 1... d5 {[%clk 0:02:57.5]} 2. c4 {[%clk 0:02:50.6]}
2... e6 {[%clk 0:02:57.8]} 3. Nf3 {[%clk 0:02:47.8]} 3... c6 {[%clk 0:02:57.7]}
4. Bg5 {[%clk 0:02:45.4]} 4... Qb6 {[%clk 0:02:50.1]} 5. Qc2 {[%clk 0:01:56.5]}
5... c5 {[%clk 0:02:47.3]} 6. e3 {[%clk 0:01:46.3]} 6... Nc6 {[%clk 0:02:47]} 7.
Nc3 {[%clk 0:01:40.2]} 7... cxd4 {[%clk 0:02:37.8]} 8. exd4 {[%clk 0:01:39.2]}
8... dxc4 {[%clk 0:02:35.5]} 9. Bxc4 {[%clk 0:01:36.7]} 9... Be7 {[%clk
0:02:17.2]} 10. O-O-O {[%clk 0:01:23.7]} 10... Bxg5+ {[%clk 0:01:51.1]} 11. Nxg5
{[%clk 0:01:24.6]} 11... h6 {[%clk 0:01:14.6]} 12. Nge4 {[%clk 0:01:18.3]} 12...
Nb4 {[%clk 0:01:08.5]} 13. Qb3 {[%clk 0:01:14.3]} 13... Bd7 {[%clk 0:00:52.6]}
14. Nc5 {[%clk 0:00:54.5]} 14... Bc6 {[%clk 0:00:45.6]} 15. N3a4 {[%clk
0:00:44.5]} 15... Qa5 {[%clk 0:00:30.2]} 16. Nc3 {[%clk 0:00:27.5]} 16... Ne7
{[%clk 0:00:22.3]} 17. Rhe1 {[%clk 0:00:20.2]} 17... O-O-O {[%clk 0:00:18.6]}
18. Re5 {[%clk 0:00:17.8]} 18... Nbd5 {[%clk 0:00:18]} 19. g3 {[%clk 0:00:11.7]}
19... Qc7 {[%clk 0:00:17.1]} 20. Kb1 {[%clk 0:00:09.9]} 20... Nxc3+ {[%clk
0:00:12.2]} 21. bxc3 {[%clk 0:00:09.4]} 21... Nd5 {[%clk 0:00:12]} 22. Ka1
{[%clk 0:00:08.1]} 22... Nb6 {[%clk 0:00:12.2]} 23. Bb5 {[%clk 0:00:06.3]} 23...
Bd5 {[%clk 0:00:12]} 24. c4 {[%clk 0:00:05.5]} 24... Bc6 {[%clk 0:00:12.4]} 25.
Rb1 {[%clk 0:00:05.1]} 25... Bxb5 {[%clk 0:00:12.5]} 26. Qxb5 {[%clk 0:00:05.5]}
26... Rxd4 {[%clk 0:00:12.4]} 27. Re3 {[%clk 0:00:04.9]} 27... Rhd8 {[%clk
0:00:10.5]} 28. Rc3 {[%clk 0:00:04.7]} 28... Rd1 {[%clk 0:00:10.5]} 29. Nb3
{[%clk 0:00:04.2]} 29... Rxb1+ {[%clk 0:00:10.3]} 30. Kxb1 {[%clk 0:00:05.1]}
30... Rd1+ {[%clk 0:00:08.6]} 31. Kc2 {[%clk 0:00:04.9]} 31... Rf1 {[%clk
0:00:08]} 32. c5 {[%clk 0:00:05]} 32... Rxf2+ {[%clk 0:00:08.2]} 33. Kb1 {[%clk
0:00:04.4]} 33... Nd5 {[%clk 0:00:08.7]} 34. Rc2 {[%clk 0:00:03.5]} 34... Rxc2
{[%clk 0:00:08.7]} 35. Kxc2 {[%clk 0:00:03.7]} 35... Qe5 {[%clk 0:00:09.1]} 36.
Qe8+ {[%clk 0:00:03.2]} 36... Kc7 {[%clk 0:00:09.2]} 37. Qxf7+ {[%clk
0:00:03.7]} 37... Kc8 {[%clk 0:00:09.7]} 38. Qe8+ {[%clk 0:00:03.9]} 38... Kc7
{[%clk 0:00:10.2]} 39. Qf7+ {[%clk 0:00:04.3]} 39... Kc8 {[%clk 0:00:10.8]} 40.
Qe8+ {[%clk 0:00:04.6]} 40... Kc7 {[%clk 0:00:11.4]} 41. Qf7+ {[%clk 0:00:04.9]}
1/2-1/2

[Event "Early-Titled-Tuesday-Blitz-February-27-2024"]
[Site "Chess.com"]
[Date "2024.02.27"]
[Round "4"]
[White "LikeWater"]
[Black "secrethawk1"]
[Result "1-0"]
[WhiteElo "2725"]
[BlackElo "2506"]
[TimeControl "180+1"]
[EndTime "8:38:26 PST"]
[Termination "LikeWater won on time"]

1. e4 {[%clk 0:03:00.9]} 1... c6 {[%clk 0:02:56.5]} 2. Nf3 {[%clk 0:02:58.2]}
2... d5 {[%clk 0:02:57.4]} 3. d3 {[%clk 0:02:57.6]} 3... g6 {[%clk 0:02:54.5]}
4. Nbd2 {[%clk 0:02:52.2]} 4... Bg7 {[%clk 0:02:51.5]} 5. Be2 {[%clk 0:02:52.2]}
5... e5 {[%clk 0:02:47.6]} 6. O-O {[%clk 0:02:52]} 6... Ne7 {[%clk 0:02:46.8]}
7. b4 {[%clk 0:02:52.1]} 7... a5 {[%clk 0:02:43.3]} 8. bxa5 {[%clk 0:02:48.7]}
8... Qxa5 {[%clk 0:02:41.9]} 9. Bb2 {[%clk 0:02:37.4]} 9... d4 {[%clk
0:02:40.9]} 10. Nc4 {[%clk 0:02:35.4]} 10... Qc7 {[%clk 0:02:40.8]} 11. a4
{[%clk 0:02:34.4]} 11... Be6 {[%clk 0:02:37.9]} 12. Nfd2 {[%clk 0:02:21]} 12...
b5 {[%clk 0:02:14]} 13. axb5 {[%clk 0:01:51.7]} 13... Rxa1 {[%clk 0:02:14.9]}
14. Qxa1 {[%clk 0:01:50.5]} 14... cxb5 {[%clk 0:02:13.9]} 15. Na3 {[%clk
0:01:46.6]} 15... O-O {[%clk 0:02:03.4]} 16. Nxb5 {[%clk 0:01:04.2]} 16... Qxc2
{[%clk 0:01:58.9]} 17. Rd1 {[%clk 0:01:04.8]} 17... Nd7 {[%clk 0:01:39.2]} 18.
Ba3 {[%clk 0:00:41.4]} 18... Ra8 {[%clk 0:01:34.6]} 19. Qc1 {[%clk 0:00:42]}
19... Qa4 {[%clk 0:00:56.4]} 20. Bxe7 {[%clk 0:00:20]} 20... Qxb5 {[%clk
0:00:54.8]} 21. Nf3 {[%clk 0:00:09.6]} 21... Qa4 {[%clk 0:00:47.2]} 22. h3
{[%clk 0:00:07.1]} 22... Qa6 {[%clk 0:00:37.3]} 23. Qd2 {[%clk 0:00:04.9]} 23...
Rc8 {[%clk 0:00:31.3]} 24. Bh4 {[%clk 0:00:05.5]} 24... Qa2 {[%clk 0:00:22.9]}
25. Bg3 {[%clk 0:00:04.9]} 25... Rc2 {[%clk 0:00:20.5]} 26. Qb4 {[%clk
0:00:03.3]} 26... Rxe2 {[%clk 0:00:20.5]} 27. Qe7 {[%clk 0:00:02.7]} 27... Bf8
{[%clk 0:00:17.2]} 28. Qd8 {[%clk 0:00:02.9]} 28... Qb3 {[%clk 0:00:09.3]} 29.
Rf1 {[%clk 0:00:02.7]} 29... Qxd3 {[%clk 0:00:08]} 30. Nxe5 {[%clk 0:00:03.1]}
30... Nf6 {[%clk 0:00:02.1]} 31. Qxf6 {[%clk 0:00:02.7]} 31... Qxe4 {[%clk
0:00:02.1]} 32. Nf3 {[%clk 0:00:02]} 32... d3 {[%clk 0:00:02]} 33. Ng5 {[%clk
0:00:02.2]} 33... Qf5 {[%clk 0:00:02.2]} 34. Qd8 {[%clk 0:00:03]} 34... h6
{[%clk 0:00:01.7]} 35. Nf3 {[%clk 0:00:02.7]} 35... d2 {[%clk 0:00:01.6]} 36.
Bd6 {[%clk 0:00:02.9]} 1-0

[Event "Early-Titled-Tuesday-Blitz-February-27-2024"]
[Site "Chess.com"]
[Date "2024.02.27"]
[Round "4"]
[White "Aygehovit1992"]
[Black "JERO-8914"]
[Result "1/2-1/2"]
[WhiteElo "2672"]
[BlackElo "2455"]
[TimeControl "180+1"]
[EndTime "8:38:26 PST"]
[Termination "Game drawn - insufficient material"]

1. e4 {[%clk 0:02:44.8]} 1... c6 {[%clk 0:02:59.2]} 2. d4 {[%clk 0:02:44.8]}
2... d5 {[%clk 0:02:58.9]} 3. e5 {[%clk 0:02:44.8]} 3... Bf5 {[%clk 0:02:55.9]}
4. Nf3 {[%clk 0:02:45.2]} 4... e6 {[%clk 0:02:55.7]} 5. Be2 {[%clk 0:02:45.5]}
5... Nd7 {[%clk 0:02:54.5]} 6. O-O {[%clk 0:02:45.5]} 6... Ne7 {[%clk
0:02:53.8]} 7. Nbd2 {[%clk 0:02:45.6]} 7... h6 {[%clk 0:02:51.2]} 8. Nb3 {[%clk
0:02:43.7]} 8... c5 {[%clk 0:02:48.4]} 9. c4 {[%clk 0:02:41.2]} 9... dxc4 {[%clk
0:02:44.2]} 10. Bxc4 {[%clk 0:02:40.7]} 10... Nc6 {[%clk 0:02:42.3]} 11. d5
{[%clk 0:02:38.4]} 11... Nb6 {[%clk 0:02:34.6]} 12. dxc6 {[%clk 0:02:32.7]}
12... Nxc4 {[%clk 0:02:24.8]} 13. cxb7 {[%clk 0:02:31.6]} 13... Rb8 {[%clk
0:02:18.6]} 14. Qxd8+ {[%clk 0:02:00.1]} 14... Kxd8 {[%clk 0:02:19.5]} 15. Rd1+
{[%clk 0:02:00.8]} 15... Kc7 {[%clk 0:02:14.2]} 16. Bd2 {[%clk 0:01:45.4]} 16...
Nxb2 {[%clk 0:02:07.4]} 17. Ba5+ {[%clk 0:01:44.7]} 17... Kxb7 {[%clk
0:02:04.5]} 18. Rd7+ {[%clk 0:01:44.8]} 18... Ka6 {[%clk 0:02:01.6]} 19. Rxf7
{[%clk 0:01:31.9]} 19... c4 {[%clk 0:01:52.5]} 20. Bc3 {[%clk 0:01:31.8]} 20...
Na4 {[%clk 0:01:47.8]} 21. Bd4 {[%clk 0:01:32]} 21... Nb6 {[%clk 0:01:37.6]} 22.
Nbd2 {[%clk 0:01:10.8]} 22... g5 {[%clk 0:01:19.6]} 23. Bxb6 {[%clk 0:01:06.5]}
23... axb6 {[%clk 0:01:16.9]} 24. Nxc4 {[%clk 0:01:06.6]} 24... Bc5 {[%clk
0:01:14.2]} 25. Nd6 {[%clk 0:00:57.1]} 25... Rhf8 {[%clk 0:01:07.8]} 26. Rxf8
{[%clk 0:00:48.8]} 26... Rxf8 {[%clk 0:01:07.5]} 27. Nxf5 {[%clk 0:00:38.9]}
27... Rxf5 {[%clk 0:01:05.3]} 28. h3 {[%clk 0:00:39.4]} 28... h5 {[%clk
0:01:05]} 29. Rf1 {[%clk 0:00:30]} 29... g4 {[%clk 0:01:04.5]} 30. hxg4 {[%clk
0:00:30.2]} 30... hxg4 {[%clk 0:01:05.4]} 31. Nh4 {[%clk 0:00:30.7]} 31... Rxe5
{[%clk 0:01:03]} 32. Kh2 {[%clk 0:00:26.4]} 32... Bd6 {[%clk 0:00:59.7]} 33. g3
{[%clk 0:00:24.7]} 33... Re2 {[%clk 0:00:57.2]} 34. a4 {[%clk 0:00:24.3]} 34...
Bc5 {[%clk 0:00:57.1]} 35. Kg2 {[%clk 0:00:21.4]} 35... Ka5 {[%clk 0:00:57.1]}
36. Ng6 {[%clk 0:00:21.9]} 36... Kxa4 {[%clk 0:00:55.6]} 37. Nf4 {[%clk
0:00:22.6]} 37... Ra2 {[%clk 0:00:55.7]} 38. Nxe6 {[%clk 0:00:22.4]} 38... Kb5
{[%clk 0:00:53]} 39. Ng5 {[%clk 0:00:12.2]} 39... Kc6 {[%clk 0:00:51.5]} 40. Ne4
{[%clk 0:00:12.3]} 40... Re2 {[%clk 0:00:51.2]} 41. Nxc5 {[%clk 0:00:08.3]}
41... bxc5 {[%clk 0:00:52.1]} 42. Rc1 {[%clk 0:00:07.8]} 42... Rd2 {[%clk
0:00:51.3]} 43. Rc4 {[%clk 0:00:07.5]} 43... Rd4 {[%clk 0:00:49.1]} 44. Rc2
{[%clk 0:00:07]} 44... Kd5 {[%clk 0:00:49.3]} 45. f3 {[%clk 0:00:06.8]} 45...
gxf3+ {[%clk 0:00:49.1]} 46. Kxf3 {[%clk 0:00:07.7]} 46... c4 {[%clk 0:00:49.9]}
47. g4 {[%clk 0:00:07.9]} 47... Rd1 {[%clk 0:00:49.2]} 48. g5 {[%clk 0:00:07.4]}
48... Rg1 {[%clk 0:00:48.3]} 49. Kf4 {[%clk 0:00:07]} 49... Kd4 {[%clk
0:00:48.2]} 50. Rd2+ {[%clk 0:00:07.5]} 50... Kc3 {[%clk 0:00:48.2]} 51. Rd6
{[%clk 0:00:08]} 51... Kc2 {[%clk 0:00:47.3]} 52. g6 {[%clk 0:00:08.2]} 52... c3
{[%clk 0:00:47.7]} 53. Kf5 {[%clk 0:00:07.9]} 53... Kc1 {[%clk 0:00:47.3]} 54.
Kf6 {[%clk 0:00:08]} 54... c2 {[%clk 0:00:47.7]} 55. g7 {[%clk 0:00:08.6]} 55...
Rxg7 {[%clk 0:00:45.5]} 56. Kxg7 {[%clk 0:00:08.6]} 56... Kb1 {[%clk 0:00:46.4]}
57. Rb6+ {[%clk 0:00:08.9]} 57... Ka2 {[%clk 0:00:46.2]} 58. Rc6 {[%clk
0:00:09.8]} 58... Kb1 {[%clk 0:00:46.5]} 59. Kf6 {[%clk 0:00:10.4]} 59... c1=Q
{[%clk 0:00:46.5]} 60. Rxc1+ {[%clk 0:00:10.6]} 60... Kxc1 {[%clk 0:00:47.4]}
1/2-1/2

[Event "Early-Titled-Tuesday-Blitz-February-27-2024"]
[Site "Chess.com"]
[Date "2024.02.27"]
[Round "4"]
[White "Yeritsyaan"]
[Black "KhazhatulyAlikhan"]
[Result "1-0"]
[WhiteElo "2602"]
[BlackElo "2419"]
[TimeControl "180+1"]
[EndTime "8:38:26 PST"]
[Termination "Yeritsyaan won by resignation"]

1. d4 {[%clk 0:02:56.1]} 1... d5 {[%clk 0:02:59.7]} 2. Nf3 {[%clk 0:02:55]} 2...
Nf6 {[%clk 0:02:59.4]} 3. Bf4 {[%clk 0:02:55.4]} 3... e6 {[%clk 0:02:55.4]} 4.
e3 {[%clk 0:02:56]} 4... Bd6 {[%clk 0:02:54.9]} 5. Nc3 {[%clk 0:02:53.8]} 5...
O-O {[%clk 0:02:54.4]} 6. Ne5 {[%clk 0:02:53.1]} 6... c5 {[%clk 0:02:48.4]} 7.
g4 {[%clk 0:02:48.6]} 7... cxd4 {[%clk 0:02:37.4]} 8. exd4 {[%clk 0:02:47.7]}
8... Bb4 {[%clk 0:02:34.7]} 9. Bd3 {[%clk 0:02:47]} 9... Ne4 {[%clk 0:02:34.6]}
10. Qf3 {[%clk 0:02:33]} 10... Nxc3 {[%clk 0:02:20.4]} 11. Bd2 {[%clk
0:02:32.3]} 11... Nxa2 {[%clk 0:01:32]} 12. c3 {[%clk 0:02:28.6]} 12... Nxc3
{[%clk 0:01:12.1]} 13. bxc3 {[%clk 0:02:26.5]} 13... Bd6 {[%clk 0:01:12.2]} 14.
Qh3 {[%clk 0:02:26.4]} 14... f5 {[%clk 0:01:02.3]} 15. Bf4 {[%clk 0:02:21.2]}
15... Nc6 {[%clk 0:00:59.5]} 16. Rg1 {[%clk 0:02:16.3]} 16... Qc7 {[%clk
0:00:32.8]} 17. gxf5 {[%clk 0:02:01.1]} 17... exf5 {[%clk 0:00:20.3]} 18. Bh6
{[%clk 0:01:58.3]} 18... Bxe5 {[%clk 0:00:14.6]} 19. dxe5 {[%clk 0:01:56.9]}
19... Qxe5+ {[%clk 0:00:14.7]} 20. Kf1 {[%clk 0:01:56]} 20... g6 {[%clk
0:00:06.3]} 21. Bxf8 {[%clk 0:01:54.2]} 21... Kxf8 {[%clk 0:00:06.7]} 22. Qxh7
{[%clk 0:01:51.8]} 22... Ne7 {[%clk 0:00:07.1]} 23. Re1 {[%clk 0:01:49.3]} 23...
Qf6 {[%clk 0:00:07.3]} 24. Qh6+ {[%clk 0:01:45.4]} 24... Kf7 {[%clk 0:00:04.7]}
25. Bb5 {[%clk 0:01:39.7]} 25... Be6 {[%clk 0:00:03.2]} 26. Rg3 {[%clk
0:01:36.8]} 26... Rh8 {[%clk 0:00:02.3]} 27. Qf4 {[%clk 0:01:33.6]} 27... Rxh2
{[%clk 0:00:02.6]} 28. Rge3 {[%clk 0:01:18.6]} 28... a6 {[%clk 0:00:01.7]} 29.
Rxe6 {[%clk 0:01:17.4]} 29... Rh1+ {[%clk 0:00:02.5]} 30. Kg2 {[%clk 0:01:17.1]}
30... Rxe1 {[%clk 0:00:03]} 31. Rxf6+ {[%clk 0:01:17.4]} 31... Kxf6 {[%clk
0:00:03.9]} 32. Bd3 {[%clk 0:01:16.9]} 32... Re6 {[%clk 0:00:03.1]} 33. Qd4+
{[%clk 0:01:16.8]} 33... Kf7 {[%clk 0:00:01.9]} 34. c4 {[%clk 0:01:16.8]} 34...
Rd6 {[%clk 0:00:01.2]} 35. Be2 {[%clk 0:01:14.3]} 35... b5 {[%clk 0:00:01.4]}
36. c5 {[%clk 0:01:14.1]} 36... Rc6 {[%clk 0:00:01.5]} 37. Bf3 {[%clk
0:01:14.8]} 37... Ke6 {[%clk 0:00:02.1]} 38. Kg3 {[%clk 0:01:13.2]} 38... Rc7
{[%clk 0:00:01.4]} 39. Kf4 {[%clk 0:01:12.6]} 39... Rc6 {[%clk 0:00:01.7]} 40.
Kg5 {[%clk 0:01:11.2]} 40... Kd7 {[%clk 0:00:01.9]} 41. Bxd5 {[%clk 0:01:09.1]}
41... Nxd5 {[%clk 0:00:02.5]} 42. Qxd5+ {[%clk 0:01:09.6]} 42... Kc7 {[%clk
0:00:03.3]} 43. Kh6 {[%clk 0:01:05.2]} 43... a5 {[%clk 0:00:03.6]} 44. Kg7
{[%clk 0:01:04.9]} 44... a4 {[%clk 0:00:03.8]} 45. Kf7 {[%clk 0:01:05.6]} 45...
a3 {[%clk 0:00:04.3]} 46. Ke7 {[%clk 0:01:06.3]} 46... a2 {[%clk 0:00:02]} 47.
Qxa2 {[%clk 0:00:58.8]} 47... Rxc5 {[%clk 0:00:02.3]} 48. Qa7+ {[%clk
0:00:57.9]} 48... Kc6 {[%clk 0:00:02.1]} 49. Ke6 {[%clk 0:00:43.8]} 49... b4
{[%clk 0:00:01.4]} 50. Qa6+ {[%clk 0:00:42]} 50... Kc7 {[%clk 0:00:01.5]} 51.
Qd6+ {[%clk 0:00:42.7]} 51... Kc8 {[%clk 0:00:01.4]} 52. Qxc5+ {[%clk
0:00:43.4]} 1-0

[Event "Early-Titled-Tuesday-Blitz-February-27-2024"]
[Site "Chess.com"]
[Date "2024.02.27"]
[Round "4"]
[White "MyDream003"]
[Black "claudyna16"]
[Result "1-0"]
[WhiteElo "2708"]
[BlackElo "2468"]
[TimeControl "180+1"]
[EndTime "8:38:29 PST"]
[Termination "MyDream003 won by resignation"]

1. d4 {[%clk 0:03:00.9]} 1... Nf6 {[%clk 0:02:57.3]} 2. c4 {[%clk 0:03:01]} 2...
g6 {[%clk 0:02:57.5]} 3. Nf3 {[%clk 0:02:59.8]} 3... Bg7 {[%clk 0:02:57.9]} 4.
g3 {[%clk 0:02:59.4]} 4... O-O {[%clk 0:02:57.4]} 5. Bg2 {[%clk 0:02:59.8]} 5...
d6 {[%clk 0:02:58.3]} 6. O-O {[%clk 0:03:00]} 6... Nc6 {[%clk 0:02:58.8]} 7. Nc3
{[%clk 0:02:56.5]} 7... e5 {[%clk 0:02:58.7]} 8. d5 {[%clk 0:02:40.6]} 8... Nb8
{[%clk 0:02:58.1]} 9. e4 {[%clk 0:02:40]} 9... a5 {[%clk 0:02:56.1]} 10. Rb1
{[%clk 0:02:37.1]} 10... Na6 {[%clk 0:02:54.4]} 11. Be3 {[%clk 0:02:28.3]} 11...
b6 {[%clk 0:02:53.5]} 12. h3 {[%clk 0:02:20.4]} 12... Nc5 {[%clk 0:02:52.3]} 13.
Nd2 {[%clk 0:02:15.2]} 13... Ne8 {[%clk 0:02:43.4]} 14. a3 {[%clk 0:02:11.6]}
14... a4 {[%clk 0:02:39]} 15. Bxc5 {[%clk 0:02:05.7]} 15... dxc5 {[%clk
0:02:39.9]} 16. Nxa4 {[%clk 0:02:05.9]} 16... Nd6 {[%clk 0:02:40.3]} 17. b4
{[%clk 0:01:53.6]} 17... Bd7 {[%clk 0:02:40.3]} 18. Nxc5 {[%clk 0:01:37.8]}
18... bxc5 {[%clk 0:02:37.3]} 19. bxc5 {[%clk 0:01:38.7]} 19... Ne8 {[%clk
0:02:32]} 20. c6 {[%clk 0:01:38.4]} 20... Bc8 {[%clk 0:02:32.1]} 21. a4 {[%clk
0:01:36.9]} 21... f5 {[%clk 0:02:29.6]} 22. c5 {[%clk 0:01:35.2]} 22... Qe7
{[%clk 0:02:15.5]} 23. Qc2 {[%clk 0:01:32.6]} 23... Ra5 {[%clk 0:02:15.1]} 24.
Rb5 {[%clk 0:01:29]} 24... Ra8 {[%clk 0:01:56.8]} 25. Nc4 {[%clk 0:01:25.2]}
25... Ba6 {[%clk 0:01:50.1]} 26. Ra5 {[%clk 0:01:25.1]} 26... Bxc4 {[%clk
0:01:40.9]} 27. Rxa8 {[%clk 0:01:24.9]} 27... Bxf1 {[%clk 0:01:41.8]} 28. Kxf1
{[%clk 0:01:17.1]} 28... fxe4 {[%clk 0:01:41.9]} 29. Bxe4 {[%clk 0:01:15.6]}
29... Nf6 {[%clk 0:01:41.9]} 30. d6 {[%clk 0:00:57.9]} 30... Qf7 {[%clk
0:01:25.5]} 31. Rxf8+ {[%clk 0:00:52.5]} 31... Bxf8 {[%clk 0:01:26.4]} 32. d7
{[%clk 0:00:52.1]} 32... Be7 {[%clk 0:01:15.9]} 33. a5 {[%clk 0:00:43.2]} 33...
Qf8 {[%clk 0:01:14.4]} 34. a6 {[%clk 0:00:38.8]} 34... Qa8 {[%clk 0:01:11.1]}
35. Qc4+ {[%clk 0:00:34.3]} 35... Kg7 {[%clk 0:01:10.3]} 36. Bf3 {[%clk
0:00:23.4]} 36... Qb8 {[%clk 0:01:01.1]} 37. Kg2 {[%clk 0:00:23.4]} 37... h5
{[%clk 0:00:55.3]} 38. Qe6 {[%clk 0:00:21.4]} 38... Bxc5 {[%clk 0:00:50.2]} 39.
Qxe5 {[%clk 0:00:21.1]} 39... Bd6 {[%clk 0:00:39.4]} 40. Qd4 {[%clk 0:00:21.3]}
40... Kf7 {[%clk 0:00:32.4]} 41. h4 {[%clk 0:00:18.6]} 41... Qa8 {[%clk
0:00:32.3]} 42. Qc4+ {[%clk 0:00:18.2]} 42... Ke7 {[%clk 0:00:31.9]} 43. Kg1
{[%clk 0:00:17.7]} 43... Qa7 {[%clk 0:00:31.3]} 44. Kg2 {[%clk 0:00:17.1]} 44...
Qb6 {[%clk 0:00:25.6]} 45. Qe2+ {[%clk 0:00:16.7]} 45... Kf7 {[%clk 0:00:22.2]}
46. Qd3 {[%clk 0:00:17.4]} 46... Kg7 {[%clk 0:00:16.2]} 47. d8=Q {[%clk
0:00:17.3]} 47... Bc5 {[%clk 0:00:13.3]} 48. Qe2 {[%clk 0:00:16.9]} 1-0